fUSD/lending_fUSD_20250530
["ID","MTS","AMOUNT","RATE_DAILY","PERIOD"]
[363227217,1748629860155,-1000.67575605,0.00027945,4]
[363227218,1748629860164,-156.0,0.00027945,5]
[363227219,1748629860175,-2131.00077913,0.0002795,2]
[363227220,1748629860186,-996.24592193,0.00027952,2]
[363227221,1748629860195,-11914.31983673,0.00027958,2]
[363227222,1748629860206,-164.73,0.00027989,2]
[363227223,1748629860216,-3000.0,0.0002799,7]
[363227224,1748629860226,-277.57,0.00028,2]
[363227225,1748629860236,-261326.35,0.00028,7]
[363227226,1748629860246,-4000.0,0.00028,4]
[363227227,1748629860256,-196.145587,0.00028,7]
[363227228,1748629860266,-196.145587,0.00028,7]
[363227229,1748629860276,-2957.38,0.00028,10]
[363227230,1748629860287,-151.0,0.00028023,7]
[363227231,1748629860297,-1600.0,0.00028109,120]
[363227232,1748629860307,-1152.0,0.00028114,2]
[363227233,1748629860318,-150.0,0.00028118,2]
[363227234,1748629860328,-1132.04,0.00028171,2]
[363227235,1748629860339,-181.08010149,0.00028178,2]
[363227236,1748629860350,-248.71531821,0.00028178,2]
[363227237,1748629860361,-801.85129955,0.00028178,2]
[363227238,1748629860371,-4609.0,0.00028266,2]
[363227239,1748629860381,-865.98112189,0.000283,2]
[363227240,1748629860391,-7500.0,0.000283,5]
[363227241,1748629860401,-506.37278201,0.000284,2]
[363227242,1748629860411,-322.129042,0.00028417,7]
[363227243,1748629860422,-322.129042,0.00028417,7]
[363227244,1748629860431,-151.0,0.00028417,7]
[363227245,1748629860441,-157.0,0.00028493,5]
[363227246,1748629860463,-154.16447956,0.000285,7]
[363227247,1748629860473,-163.41321543,0.00028567,15]
[363227248,1748629860485,-6073.90825069,0.0002859,19]
[363227249,1748629860495,-9034.59,0.000286,7]
[363227250,1748629860506,-1436.14,0.00028672,2]
[363227251,1748629860517,-634.0,0.00028698,2]
[363227252,1748629860527,-801.0,0.00028698,2]
[363227253,1748629860539,-924.0,0.00028698,2]
[363227254,1748629860549,-588.0,0.00028698,2]
[363227255,1748629860560,-1268.0,0.00028698,2]
[363227256,1748629860571,-1466.0,0.00028698,2]
[363227257,1748629860581,-556.0,0.00028698,2]
[363227258,1748629860592,-1155.0,0.00028698,2]
[363227259,1748629860604,-1314.0,0.00028698,2]
[363227260,1748629860619,-6929.0,0.00028698,2]
[363227261,1748629860630,-941.0,0.00028698,2]
[363227262,1748629860640,-155.0,0.00028698,2]
[363227263,1748629860651,-155.0,0.00028698,2]
[363227264,1748629860663,-151.0,0.00028698,7]
[363227265,1748629860674,-151.0,0.00028698,7]
[363227266,1748629860685,-2000.0,0.000287,2]
[363227267,1748629860696,-9276.59,0.000287,2]
[363227268,1748629860708,-232.81,0.00028758,2]
[363227269,1748629860718,-151.0,0.00028767,7]
[363227270,1748629860728,-151.0,0.00028767,7]
[363227271,1748629860739,-151.0,0.00028767,7]
[363227272,1748629860750,-151.0,0.00028767,7]
[363227273,1748629860760,-197.577591,0.00028767,7]
[363227274,1748629860770,-197.577591,0.00028767,7]
[363227275,1748629860781,-500.0,0.00028767,30]
[363227276,1748629860792,-5120.14,0.00028767,2]
[363227277,1748629860802,-353.92,0.00028767,2]
[363227278,1748629860813,-353.92,0.00028767,2]
[363227279,1748629860823,-353.92,0.00028767,2]
[363227280,1748629860833,-353.92,0.00028767,2]
[363227281,1748629860843,-541.77,0.00028767,2]
[363227282,1748629860854,-353.92,0.00028767,2]
[363227283,1748629860865,-151.0,0.00028799,7]
[363227284,1748629860875,-284.053244,0.00028799,7]
[363227285,1748629860885,-151.0,0.00028799,7]
[363227286,1748629860895,-151.0,0.00028799,7]
[363227287,1748629860906,-151.0,0.00028799,7]
[363227288,1748629860916,-100000.0,0.000288,2]
[363227289,1748629860927,-100000.0,0.000288,2]
[363227290,1748629860937,-100000.0,0.000288,2]
[363227291,1748629860947,-100000.0,0.000288,2]
[363227292,1748629860958,-100000.0,0.000288,2]
[363227293,1748629860968,-100000.0,0.000288,2]
[363227294,1748629860977,-10177.36,0.000288,2]
[363227295,1748629860988,-10000.0,0.000288,2]
[363227296,1748629860999,-10000.0,0.000288,2]
[363227297,1748629861009,-10000.0,0.000288,2]
[363227298,1748629861019,-238.385818,0.000288,7]
[363227299,1748629861030,-151.0,0.000288,7]
[363227300,1748629861041,-151.0,0.000288,7]
[363227301,1748629861051,-151.0,0.000288,7]
[363227302,1748629861061,-151.0,0.000288,7]
[363227303,1748629861071,-151.0,0.000288,7]
[363227304,1748629861082,-151.0,0.000288,7]
[363227305,1748629861091,-151.0,0.000288,7]
[363227306,1748629861102,-151.0,0.000288,7]
[363227307,1748629861113,-151.0,0.000288,7]
[363227308,1748629861124,-285.875665,0.000288,7]
[363227309,1748629861135,-151.0,0.000288,7]
[363227310,1748629861145,-151.0,0.000288,7]
[363227311,1748629861156,-166.489499,0.000288,7]
[363227312,1748629861166,-151.0,0.000288,7]
[363227313,1748629861177,-322.129042,0.000288,7]
[363227314,1748629861188,-322.129042,0.000288,7]
[363227315,1748629861198,-322.129042,0.000288,7]
[363227316,1748629861208,-322.129042,0.000288,7]
[363227317,1748629861218,-163.304967,0.000288,7]
[363227318,1748629861228,-163.304967,0.000288,7]
[363227319,1748629861238,-151.0,0.000288,7]
[363227320,1748629861248,-151.0,0.000288,7]
[363227321,1748629861258,-151.0,0.000288,7]
[363227322,1748629861268,-197.577591,0.000288,7]
[363227323,1748629861278,-197.577591,0.000288,7]
[363227324,1748629861288,-197.577591,0.000288,7]
[363227325,1748629861298,-197.577591,0.000288,7]
[363227326,1748629861308,-151.0,0.000288,7]
[363227327,1748629861318,-151.0,0.000288,7]
[363227328,1748629861328,-325.254327,0.000288,7]
[363227329,1748629861338,-325.254327,0.000288,7]
[363227330,1748629861348,-325.254327,0.000288,7]
[363227331,1748629861358,-325.254327,0.000288,7]
[363227332,1748629861368,-151.0,0.000288,7]
[363227333,1748629861378,-151.0,0.000288,7]
[363227334,1748629861389,-151.0,0.000288,7]
[363227335,1748629861399,-151.0,0.000288,7]
[363227336,1748629861409,-151.0,0.000288,7]
[363227337,1748629861419,-151.0,0.000288,7]
[363227338,1748629861430,-151.0,0.000288,7]
[363227339,1748629861442,-151.0,0.000288,7]
[363227340,1748629861454,-984.26061,0.000288,7]
[363227341,1748629861465,-984.26061,0.000288,7]
[363227342,1748629861475,-984.26061,0.000288,7]
[363227343,1748629861485,-984.26061,0.000288,7]
[363227344,1748629861496,-151.0,0.000288,7]
[363227345,1748629861507,-151.0,0.000288,7]
[363227346,1748629861517,-819.55575,0.000288,7]
[363227347,1748629861527,-819.55575,0.000288,7]
[363227348,1748629861538,-151.0,0.000288,7]
[363227349,1748629861547,-151.0,0.000288,7]
[363227350,1748629861557,-202.841095,0.000288,7]
[363227351,1748629861567,-202.841095,0.000288,7]
[363227352,1748629861576,-202.841095,0.000288,7]
[363227353,1748629861585,-202.841095,0.000288,7]
[363227354,1748629861593,-151.0,0.000288,7]
[363227355,1748629861604,-151.0,0.000288,7]
[363227356,1748629861619,-151.0,0.000288,7]
[363227357,1748629861630,-151.0,0.000288,7]
[363227358,1748629861640,-151.0,0.000288,7]
[363227359,1748629861650,-151.0,0.000288,7]
[363227360,1748629861660,-151.0,0.000288,7]
[363227361,1748629861669,-221.895258,0.000288,7]
[363227362,1748629861677,-151.0,0.000288,7]
[363227363,1748629861687,-155.221073,0.000288,7]
[363227364,1748629861699,-151.0,0.000288,7]
[363227365,1748629861710,-151.0,0.000288,7]
[363227366,1748629861719,-151.0,0.000288,7]
[363227367,1748629861729,-151.0,0.000288,7]
[363227368,1748629861739,-151.0,0.000288,7]
[363227369,1748629861749,-151.0,0.000288,7]
[363227370,1748629861759,-151.0,0.000288,7]
[363227371,1748629861769,-151.0,0.000288,7]
[363227372,1748629861779,-151.0,0.000288,7]
[363227373,1748629861789,-151.0,0.000288,7]
[363227374,1748629861799,-151.0,0.000288,7]
[363227375,1748629861808,-151.0,0.000288,7]
[363227376,1748629861818,-151.0,0.000288,7]
[363227377,1748629861828,-151.0,0.000288,7]
[363227378,1748629861839,-151.0,0.000288,7]
[363227379,1748629861850,-151.0,0.000288,7]
[363227380,1748629861860,-949.451029,0.000288,7]
[363227381,1748629861871,-949.451029,0.000288,7]
[363227382,1748629861882,-949.451029,0.000288,7]
[363227383,1748629861892,-949.451029,0.000288,7]
[363227384,1748629861903,-151.0,0.000288,7]
[363227385,1748629861913,-151.0,0.000288,7]
[363227386,1748629861923,-151.0,0.000288,7]
[363227387,1748629861934,-151.0,0.000288,7]
[363227388,1748629861944,-151.0,0.000288,7]
[363227389,1748629861955,-151.0,0.000288,7]
[363227390,1748629861965,-1739.178541,0.000288,7]
[363227391,1748629861975,-1739.178541,0.000288,7]
[363227392,1748629861986,-1739.178541,0.000288,7]
[363227393,1748629861996,-1739.178541,0.000288,7]
[363227394,1748629862007,-4965.365986,0.000288,7]
[363227395,1748629862017,-4965.365986,0.000288,7]
[363227396,1748629862028,-151.0,0.000288,7]
[363227397,1748629862038,-151.0,0.000288,7]
[363227398,1748629862048,-151.0,0.000288,7]
[363227399,1748629862059,-151.0,0.000288,7]
[363227400,1748629862068,-151.0,0.000288,7]
[363227401,1748629862079,-151.0,0.000288,7]
[363227402,1748629862090,-151.0,0.000288,7]
[363227403,1748629862102,-151.0,0.000288,7]
[363227404,1748629862113,-151.0,0.000288,7]
[363227405,1748629862123,-154.121012,0.000288,7]
[363227406,1748629862134,-151.0,0.000288,7]
[363227407,1748629862143,-151.0,0.000288,7]
[363227408,1748629862153,-151.0,0.000288,7]
[363227409,1748629862163,-151.0,0.000288,7]
[363227410,1748629862173,-199.0,0.000288,7]
[363227411,1748629862183,-151.0,0.000288,7]
[363227412,1748629862193,-262.995413,0.000288,7]
[363227413,1748629862203,-151.0,0.000288,7]
[363227414,1748629862213,-151.0,0.000288,7]
[363227415,1748629862222,-151.0,0.000288,7]
[363227416,1748629862232,-242.120063,0.000288,7]
[363227417,1748629862242,-242.120063,0.000288,7]
[363227418,1748629862252,-242.120063,0.000288,7]
[363227419,1748629862262,-242.120063,0.000288,7]
[363227420,1748629862272,-817.881421,0.000288,7]
[363227421,1748629862283,-817.881421,0.000288,7]
[363227422,1748629862293,-151.0,0.000288,7]
[363227423,1748629862302,-817.881421,0.000288,7]
[363227424,1748629862312,-817.881421,0.000288,7]
[363227425,1748629862322,-151.0,0.000288,7]
[363227426,1748629862332,-196.145587,0.000288,7]
[363227427,1748629862342,-196.145587,0.000288,7]
[363227428,1748629862355,-150.0,0.00028839,2]
[363227429,1748629862365,-184.03,0.00028909,2]
[363227430,1748629862375,-619.47773,0.0002891,2]
[363227431,1748629862386,-261.19061702,0.00028932,30]
[363227432,1748629862397,-8205.0,0.00028957,5]
[363227433,1748629862407,-3844.0,0.00028957,5]
[363227434,1748629862417,-212.0,0.00028997,14]
[363227435,1748629862428,-151.0,0.00028997,14]
[363227436,1748629862438,-511.60002415,0.00029,2]
[363227437,1748629862449,-512.24913315,0.00029,2]
[363227438,1748629862459,-75402.45227618,0.00029,2]
[363227439,1748629862469,-49795.94284929,0.00029,2]
[363227440,1748629862479,-167.0,0.00029,120]
[363227441,1748629862490,-157.0,0.00029,120]
[363227442,1748629862500,-150.12,0.00029,2]
[363227443,1748629862510,-150.12,0.00029,2]
[363227444,1748629862522,-237.0,0.00029,2]
[363227445,1748629862532,-375.0,0.00029,2]
[363227446,1748629862542,-600.0,0.00029,2]
[363227447,1748629862553,-261.19061702,0.00029041,30]
[363227448,1748629862563,-158.0,0.00029041,5]
[363227449,1748629862574,-261.19061702,0.00029151,30]
[363227450,1748629862585,-261.19061702,0.0002926,30]
[363227451,1748629862595,-261326.35,0.000293,7]
[363227452,1748629862606,-6073.90825069,0.00029314,20]
[363227453,1748629862623,-500.0,0.00029315,30]
[363227454,1748629862633,-261.19061702,0.00029397,30]
[363227455,1748629862643,-12500.0,0.00029473,3]
[363227456,1748629862654,-12500.0,0.00029505,3]
[363227457,1748629862665,-261.19061702,0.00029507,30]
[363227458,1748629862675,-12500.0,0.00029513,3]
[363227459,1748629862687,-12500.0,0.00029522,3]
[363227460,1748629862698,-12500.0,0.00029531,3]
[363227461,1748629862708,-163.304967,0.00029532,7]
[363227462,1748629862719,-163.304967,0.00029532,7]
[363227463,1748629862729,-151.0,0.00029532,7]
[363227464,1748629862740,-187.78006525,0.00029547,2]
[363227465,1748629862751,-257.91778498,0.00029547,2]
[363227466,1748629862762,-831.51979763,0.00029547,2]
[363227467,1748629863000,-1243.57659104,0.0002955,2]
[363227468,1748629863049,-150.0,0.0002956,2]
[363227469,1748629863060,-500.0,0.00029589,30]
[363227470,1748629863071,-256.52596424,0.00029589,5]
[363227471,1748629863082,-353.92,0.00029589,2]
[363227472,1748629863092,-261.19061702,0.00029616,30]
[363227473,1748629863103,-9034.59,0.000297,7]
[363227474,1748629863113,-1000.0,0.00029716,2]
[363227475,1748629863123,-460.46,0.00029726,2]
[363227476,1748629863133,-261.19061702,0.00029726,30]
[363227477,1748629863143,-200.0,0.00029751,2]
[363227478,1748629863153,-4965.365986,0.000298,7]
[363227479,1748629863163,-4965.365986,0.000298,7]
[363227480,1748629863173,-420.92909667,0.00029863,30]
[363227481,1748629863183,-421.98681058,0.00029863,30]
[363227482,1748629863192,-261.19061702,0.00029863,30]
[363227483,1748629863202,-151.0,0.00029899,7]
[363227484,1748629863212,-151.0,0.00029899,7]
[363227485,1748629863222,-151.0,0.00029899,7]
[363227486,1748629863231,-151.0,0.00029899,7]
[363227487,1748629863241,-151.0,0.00029899,7]
[363227488,1748629863251,-1739.178541,0.00029899,7]
[363227489,1748629863261,-1739.178541,0.00029899,7]
[363227490,1748629863270,-151.0,0.00029899,7]
[363227491,1748629863280,-267.707776,0.00029899,7]
[363227492,1748629863290,-151.0,0.00029899,7]
[363227493,1748629863300,-196.145587,0.00029899,7]
[363227494,1748629863310,-196.145583,0.00029899,7]
[363227495,1748629863319,-76161.87854499,0.000299,2]
[363227496,1748629863329,-412.83515749,0.000299,2]
[363227497,1748629863339,-500.0,0.00029945,2]
[363227498,1748629863350,-261.19061702,0.00029973,30]
[363227499,1748629863360,-230.07209552,0.0002999,2]
[363227500,1748629863370,-151.0,0.00029999,7]
[363227501,1748629863379,-151.0,0.00029999,7]
[363227502,1748629863389,-151.0,0.00029999,7]
[363227503,1748629863398,-151.0,0.00029999,7]
[363227504,1748629863407,-984.26061,0.00029999,7]
[363227505,1748629863416,-984.26061,0.00029999,7]
[363227506,1748629863425,-168.192605,0.00029999,7]
[363227507,1748629863434,-819.55575,0.00029999,7]
[363227508,1748629863443,-151.0,0.00029999,7]
[363227509,1748629863453,-202.841095,0.00029999,7]
[363227510,1748629863463,-202.841095,0.00029999,7]
[363227511,1748629863473,-151.0,0.00029999,7]
[363227512,1748629863483,-151.0,0.00029999,7]
[363227513,1748629863493,-151.0,0.00029999,7]
[363227514,1748629863503,-151.0,0.00029999,7]
[363227515,1748629863514,-151.0,0.00029999,7]
[363227516,1748629863523,-155.927274,0.00029999,7]
[363227517,1748629863533,-949.451029,0.00029999,7]
[363227518,1748629863543,-949.451029,0.00029999,7]
[363227519,1748629863553,-151.0,0.00029999,7]
[363227520,1748629863563,-151.0,0.00029999,7]
[363227521,1748629863572,-242.120063,0.00029999,7]
[363227522,1748629863582,-242.120063,0.00029999,7]
[363227523,1748629863592,-400.0,0.0003,2]
[363227524,1748629863602,-610.74745578,0.0003,2]
[363227525,1748629863613,-53592.01411032,0.0003,5]
[363227526,1748629863626,-1759.674863,0.0003,2]
[363227527,1748629863636,-160.7301918,0.0003,2]
[363227528,1748629863646,-1053.02726746,0.0003,10]
[363227529,1748629863656,-161.45550758,0.0003,2]
[363227530,1748629863667,-426.05,0.0003,10]
[363227531,1748629863677,-1000.0,0.0003,9]
[363227532,1748629863687,-773.43558984,0.0003,7]
[363227533,1748629863698,-3054.54923707,0.0003,2]
[363227534,1748629863709,-1990.0,0.0003,2]
[363227535,1748629863719,-1990.0,0.0003,2]
[363227536,1748629863729,-161.0,0.0003,3]
[363227537,1748629863739,-1474.0,0.0003,10]
[363227538,1748629863749,-1374.90142226,0.0003,2]
[363227539,1748629863759,-4283.12540988,0.0003,2]
[363227540,1748629863769,-1000.0,0.0003,4]
[363227541,1748629863779,-1000.0,0.0003,4]
[363227542,1748629863788,-1000.0,0.0003,4]
[363227543,1748629863798,-1000.0,0.0003,4]
[363227544,1748629863808,-1000.0,0.0003,4]
[363227545,1748629863817,-1000.0,0.0003,4]
[363227546,1748629863828,-1000.0,0.0003,4]
[363227547,1748629863838,-1000.0,0.0003,4]
[363227548,1748629863848,-1000.0,0.0003,4]
[363227549,1748629863861,-1000.0,0.0003,4]
[363227550,1748629863871,-1000.0,0.0003,4]
[363227551,1748629863881,-1000.0,0.0003,4]
[363227552,1748629863892,-1000.0,0.0003,4]
[363227553,1748629863903,-1000.0,0.0003,4]
[363227554,1748629863913,-1000.0,0.0003,4]
[363227555,1748629863924,-1000.0,0.0003,4]
[363227556,1748629863935,-1000.0,0.0003,4]
[363227557,1748629863945,-1000.0,0.0003,4]
[363227558,1748629863955,-1000.0,0.0003,4]
[363227559,1748629863965,-1000.0,0.0003,4]
[363227560,1748629863975,-1000.0,0.0003,4]
[363227561,1748629863984,-300.0,0.0003,4]
[363227562,1748629863994,-29668.14264583,0.0003,2]
[363227563,1748629864004,-25392.73776096,0.0003,5]
[363227564,1748629864014,-1243.95252657,0.0003,10]
[363227565,1748629864025,-115741.88707749,0.0003,2]
[363227566,1748629864035,-3444.78,0.0003,2]
[363227567,1748629864045,-24437.12486217,0.0003,5]
[363227568,1748629864055,-19270.91493029,0.0003,2]
[363227569,1748629864065,-90507.94094131,0.0003,2]
[363227570,1748629864075,-1010.71686675,0.0003,7]
[363227571,1748629864086,-940.92740159,0.0003,120]
[363227572,1748629864100,-290.47329907,0.0003,120]
[363227573,1748629864114,-602.20331479,0.0003,60]
[363227574,1748629864123,-532.37677914,0.0003,120]
[363227575,1748629864133,-195.6,0.0003,7]
[363227576,1748629864143,-37656.56821239,0.0003,5]
[363227577,1748629864165,-2421.98719612,0.0003,5]
[363227578,1748629864281,-154.19005665,0.0003,5]
[363227579,1748629865523,-434.14531306,0.00020087,2]
[363227580,1748629865533,-882.0,0.00022698,2]
[363227581,1748629865542,-493.88267938,0.0002485,2]
[363227582,1748629865551,-500.0,0.00025531,2]
[363227583,1748629865561,-500.0,0.00025531,2]
[363227584,1748629865570,-500.0,0.00025531,2]
[363227585,1748629865580,-500.0,0.00025531,2]
[363227586,1748629865589,-485.65463093,0.00025531,2]
[363227587,1748630019612,182.85,0.00016712,2]
[363227590,1748630326839,2026.0,0.00025,80]
[363227593,1748630439173,10000.0,0.00023,30]
[363227594,1748630456559,1049.0,0.00019401,2]
[363227596,1748630626345,283.26,0.00013699,2]
[363227598,1748630656620,182.96,0.00016553,2]
[363227600,1748630743357,-914.89,0.00019522,2]
[363227601,1748630743380,-200.0,0.00019622,2]
[363227602,1748630743402,-200.0,0.00019721,2]
[363227603,1748630743426,-250.0,0.00019721,2]
[363227604,1748630743447,-167.97,0.00019999,2]
[363227606,1748630847199,-200.0,0.00020147,2]
[363227607,1748630847229,-205.52633071,0.00020187,2]
[363227608,1748630953174,-77.73366929,0.00020187,2]
[363227609,1748630959261,-200.0,0.00020332,2]
[363227631,1748631038315,-200.0,0.00020476,2]
[363227632,1748631038326,-200.0,0.0002055,2]
[363227633,1748631038336,-2751.0,0.00020687,2]
[363227634,1748631038346,-1200.0,0.00020691,2]
[363227635,1748631038356,-6143.66099463,0.00020692,2]
[363227865,1748631040676,-17756.33900537,0.00020692,2]
[363227867,1748631040686,-869.61,0.00020707,2]
[363227869,1748631040695,-150.0,0.00020735,7]
[363227870,1748631040704,-3731.72439795,0.000209,4]
[363227872,1748631040713,-548.16,0.00020986,2]
[363227875,1748631040723,-14533.91153669,0.00021126,2]
[363227877,1748631040732,-207.4,0.00021195,2]
[363227878,1748631040742,-844.11,0.00021202,2]
[363227880,1748631040751,-844.11,0.00021208,2]
[363227882,1748631040760,-9999.99,0.00021208,2]
[363227884,1748631040769,-2039.04,0.00021208,2]
[363227886,1748631040778,-299.99,0.00021208,7]
[363227887,1748631040787,-1410.8,0.00021208,2]
[363227889,1748631040797,-585.98,0.00021208,2]
[363227891,1748631040806,-12141.46,0.00021208,2]
[363227893,1748631040815,-9999.99,0.00021208,2]
[363227895,1748631040824,-9999.99,0.00021208,2]
[363227897,1748631040835,-265.53,0.00021208,2]
[363227899,1748631040844,-150.99,0.00021208,2]
[363227900,1748631040855,-844.11,0.00021213,2]
[363227901,1748631040864,-844.11,0.00021219,2]
[363227902,1748631040873,-844.11,0.00021225,2]
[363227903,1748631040882,-844.11,0.0002123,2]
[363227904,1748631040891,-844.11,0.00021236,2]
[363227905,1748631040900,-315.0,0.00021241,2]
[363227906,1748631040908,-844.11,0.00021241,2]
[363227907,1748631040917,-844.11,0.00021247,2]
[363227908,1748631040926,-844.11,0.00021252,2]
[363227909,1748631040935,-844.11,0.00021258,2]
[363227910,1748631040944,-844.11,0.00021264,2]
[363227911,1748631040953,-844.11,0.00021269,2]
[363227912,1748631040962,-844.11,0.00021275,2]
[363227913,1748631040971,-844.11,0.0002128,2]
[363227914,1748631040979,-844.11,0.00021286,2]
[363227915,1748631040988,-844.11,0.00021292,2]
[363227916,1748631040997,-844.11,0.00021297,2]
[363227917,1748631041006,-844.11,0.00021303,2]
[363227918,1748631041015,-844.11,0.00021308,2]
[363227919,1748631041024,-172.44,0.00021327,2]
[363227921,1748631041036,-167.97,0.00021369,2]
[363227923,1748631041045,-1904.0,0.0002137,2]
[363227925,1748631041055,-250.0,0.00021474,2]
[363227927,1748631041064,-165.39,0.00021504,2]
[363227929,1748631041074,-200.0,0.0002152,2]
[363227931,1748631041083,-999.99,0.0002152,2]
[363227933,1748631041092,-150.99,0.0002152,2]
[363227935,1748631041103,-175.7,0.0002152,2]
[363227937,1748631041113,-2688.79,0.0002152,2]
[363227939,1748631041123,-3731.72439791,0.00021693,5]
[363227941,1748631041133,-548.16,0.00021773,2]
[363227943,1748631041142,-914.89,0.00021786,2]
[363227945,1748631041151,-151.0,0.00021787,2]
[363227947,1748631041160,-1115.157653,0.00021787,2]
[363227949,1748631041170,-668.65185757,0.00021787,2]
[363227951,1748631041179,-300.0,0.00021787,2]
[363227953,1748631041188,-407.43225599,0.00021787,2]
[363227955,1748631041197,-300.0,0.00021787,2]
[363227957,1748631041206,-300.0,0.00021787,2]
[363227959,1748631041215,-300.0,0.00021787,2]
[363227961,1748631041225,-300.0,0.00021787,2]
[363227963,1748631041235,-300.0,0.00021787,2]
[363227965,1748631041246,-300.0,0.00021787,2]
[363227967,1748631041255,-300.0,0.00021787,2]
[363227969,1748631041265,-300.0,0.00021787,2]
[363227971,1748631041274,-219.67511804,0.00021787,2]
[363227973,1748631041284,-250.0,0.00021845,2]
[363227975,1748631041295,-1500.0,0.00022033,2]
[363227977,1748631041305,-300.0,0.00022049,2]
[363227979,1748631041315,-500.0,0.0002208,2]
[363227981,1748631041324,-189.37,0.00022093,2]
[363227983,1748631041334,-200.0,0.00022117,2]
[363227985,1748631041343,-250.0,0.00022117,2]
[363227987,1748631041356,-200.0,0.00022206,2]
[363227989,1748631041365,-250.0,0.00022206,2]
[363227991,1748631041376,-172.44,0.00022207,2]
[363227993,1748631041385,-834.29,0.000224,2]
[363227995,1748631041395,-3731.72439791,0.00022486,7]
[363227997,1748631041405,-200.0,0.00022523,2]
[363227999,1748631041414,-6364.28950823,0.00022528,2]
[363228001,1748631041423,-2434.18921693,0.00022528,2]
[363228003,1748631041432,-548.16,0.0002256,2]
[363228005,1748631041442,-215.0738,0.00022564,2]
[363228007,1748631041451,-32537.44538619,0.00022599,2]
[363228009,1748631041460,-1680.0,0.00022621,2]
[363228011,1748631041470,-1000.0,0.00022628,2]
[363228013,1748631041479,-2500.0,0.000227,2]
[363228014,1748631041488,-167.97,0.00022739,2]
[363228017,1748631041498,-155529.72,0.000228,2]
[363228018,1748631041507,-9972.67143484,0.000229,2]
[363228020,1748631041517,-6364.28950823,0.0002299,2]
[363228022,1748631041527,-800.0,0.00023,8]
[363228025,1748631041537,-800.0,0.00023,8]
[363228026,1748631041546,-800.0,0.00023,8]
[363228029,1748631041556,-800.0,0.00023,8]
[363228031,1748631041565,-800.0,0.00023,8]
[363228032,1748631041574,-800.0,0.00023,8]
[363228034,1748631041583,-800.0,0.00023,8]
[363228036,1748631041592,-800.0,0.00023,8]
[363228038,1748631041604,-800.0,0.00023,8]
[363228040,1748631041613,-800.0,0.00023,8]
[363228042,1748631041623,-200.0,0.00023,2]
[363228045,1748631041632,-255.40050291,0.00023031,2]
[363228047,1748631041642,-172.44,0.00023087,2]
[363228048,1748631041651,-156.587,0.00023156,2]
[363228050,1748631041661,-693.3919763,0.00023156,2]
[363228053,1748631041672,-1500.0,0.00023176,2]
[363228055,1748631041682,-3731.72439791,0.00023279,8]
[363228056,1748631041691,-869.61,0.00023295,2]
[363228058,1748631041704,-1216.71593468,0.00023306,2]
[363228060,1748631041714,-548.16,0.00023347,2]